bitfinex/quotes_ETHUSD_20260310
["timestamp","ask_amount","ask_price","bid_price","bid_amount"]
[1773143024410,2.470906,2062.1,2061.7,1.481802]
[1773143024640,1.53009172,2062.1,2061.7,1.481802]
[1773143024943,1.53009172,2062.1,2061.3,3.69801195]
[1773143024944,1.70658273,2061.8,2061.0,3.07694454]
[1773143025109,1.70658273,2061.8,2061.1,4.85164161]
[1773143025736,1.70658273,2061.7,2061.2,0.04404627]
[1773143027740,1.70658273,2062.2,2061.4,0.04618405]
[1773143027946,1.70658273,2062.2,2061.5,0.09469241]
[1773143028247,1.70658273,2062.2,2061.2,4.85130742]
[1773143028544,1.70658273,2062.2,2061.3,1.21282685]
[1773143028841,1.72967476,2062.4,2061.4,2.35471097]
[1773143029042,1.72967476,2062.4,2061.5,0.01614883]
[1773143029545,1.72967476,2062.4,2061.6,1.87]
[1773143029849,1.72967476,2062.4,2061.8,1.21253273]
[1773143030147,1.72967476,2062.6,2061.9,0.01692349]
[1773143030748,1.79028082,2062.5,2061.9,0.01692349]
[1773143031248,1.79028082,2062.5,2062.0,0.03319741]
[1773143031447,1.79028082,2062.5,2061.8,1.22958649]
[1773143031635,1.79028082,2062.5,2061.8,1.21253273]
[1773143032152,1.79028082,2062.5,2061.7,4.85013095]
[1773143032153,1.72967476,2062.3,2061.7,4.86730025]
[1773143032950,1.79028669,2062.3,2061.7,4.86730025]
[1773143035634,1.79028669,2062.3,2061.8,0.01740597]
[1773143035839,1.72967476,2062.3,2061.8,0.01740597]
[1773143036134,1.79027494,2062.7,2061.8,0.01740597]
[1773143037023,1.72967476,2062.4,2061.7,4.85013095]
[1773143037224,1.72967476,2062.2,2061.7,1.23008623]
[1773143038151,0.06060899,2062.4,2061.9,0.01751662]
[1773143038459,1.72967476,2062.5,2061.9,0.01751662]
[1773143039755,0.001,2062.1,2062.0,1.21241513]
[1773143040531,1.72967476,2062.6,2062.1,0.01750135]
[1773143040931,1.72967476,2062.6,2062.2,0.02427865]
[1773143041132,1.72967476,2062.6,2062.2,0.01747999]
[1773143041640,1.790272,2062.8,2062.2,0.01747999]
[1773143042240,1.790272,2062.8,2062.3,1.21223876]
[1773143042456,1.790272,2062.8,2062.3,1.22969992]
[1773143043645,1.790272,2062.8,2062.3,1.25396799]
[1773143043845,3.0022213,2062.8,2062.3,1.25396799]
[1773143044065,1.72967476,2062.7,2062.3,1.25396799]
[1773143046767,1.79126613,2063.0,2062.4,0.01868027]
[1773143047568,1.73067476,2063.0,2062.4,0.01868027]
[1773143048963,1.73067476,2063.0,2062.5,1.21212121]
[1773143049165,0.001,2063.0,2062.6,0.01823885]
[1773143051764,1.73067476,2063.0,2062.7,1.21200368]
[1773143051970,0.001,2062.8,2062.7,1.21200368]
[1773143056576,1.73067476,2062.8,2062.6,1.21202598]
[1773143056777,1.73067476,2062.8,2062.6,0.02425749]
[1773143056949,1.73067476,2062.8,2062.4,0.04098108]
[1773143057150,1.73067476,2062.8,2062.5,1.21212121]
[1773143057350,0.001,2062.8,2062.6,0.04071822]
[1773143057776,0.001,2062.8,2062.6,0.01645603]
[1773143059672,0.001,2062.8,2062.7,1.21200368]
[1773143061779,0.001,2062.8,2062.6,4.84816159]
[1773143061948,1.73067476,2062.8,2062.6,1.21206244]
[1773143062453,1.73067476,2062.8,2062.4,1.21216071]
[1773143064578,0.001,2062.6,2062.4,1.21216071]
[1773143065882,1.73067476,2062.6,2062.4,1.21216071]
[1773143066083,1.73067476,2062.6,2062.3,1.21329168]
[1773143066978,1.72967476,2062.5,2062.3,0.0011]
[1773143071286,1.72967476,2062.4,2062.3,0.0011]
[1773143072187,1.72967476,2062.4,2062.3,1.21333876]
[1773143072389,1.72967476,2062.5,2062.3,1.21333876]
[1773143072768,1.72967476,2062.5,2062.3,0.0011]
[1773143073661,1.72967476,2062.5,2062.0,0.0011]
[1773143073972,1.72967476,2062.5,2062.0,1.23748246]
[1773143074476,1.72912476,2062.4,2062.0,1.23748246]
[1773143075075,1.72912476,2062.4,2062.1,0.01202532]
[1773143075471,1.73012476,2062.6,2062.1,0.01202532]
[1773143075682,1.72912476,2062.5,2062.1,0.01202532]
[1773143076362,1.72912476,2062.5,2062.3,0.0011]
[1773143077499,1.72912476,2062.4,2062.0,4.85072805]
[1773143077714,1.72912476,2062.4,2062.1,1.2123332]
[1773143078399,1.72912476,2062.4,2062.1,1.22290754]
[1773143078979,1.73012476,2062.6,2062.2,0.01057434]
[1773143080803,0.001,2062.6,2062.2,0.01057434]
[1773143080991,0.001,2062.6,2062.4,0.00959028]
[1773143081470,1.73012476,2062.6,2062.2,0.00906818]
[1773143082706,1.73012476,2062.6,2062.1,1.22090554]
[1773143083387,1.72912476,2062.5,2062.1,1.21230691]
[1773143084195,4.90867309,2062.7,2062.4,1.67299389]
[1773143084196,1.58195494,2062.7,2062.4,1.67299389]
[1773143084372,1.58295494,2062.8,2062.4,1.67299389]
[1773143085467,1.58295494,2062.8,2062.5,1.21212121]
[1773143085668,1.58295494,2063.0,2062.6,1.67299389]
[1773143086183,1.71360434,2063.6,2063.0,1.63004799]
[1773143086507,1.77418103,2063.5,2063.0,1.63004799]
[1773143087807,1.71360434,2063.3,2062.8,2.84195165]
[1773143088311,1.71360434,2063.3,2062.9,1.63004799]
[1773143089375,1.71360434,2063.3,2062.8,1.21190366]
[1773143089808,1.71360434,2063.3,2062.8,1.63004799]
[1773143092109,1.71360434,2063.3,2062.9,1.21188617]
[1773143092814,1.71360434,2063.3,2062.9,2.84193416]
[1773143093681,1.77418983,2063.2,2062.6,1.63004799]
[1773143093877,1.77418983,2063.2,2062.7,1.63004799]
[1773143094704,1.71360434,2063.1,2062.6,1.21200712]
[1773143094889,1.77419571,2063.0,2062.6,1.21200712]
[1773143095094,1.71360434,2063.0,2062.6,1.21200712]
[1773143095495,1.71360434,2063.0,2062.7,1.63004799]
[1773143096002,0.94104652,2063.4,2062.7,1.63004799]
[1773143096003,1.71360434,2063.2,2062.7,1.63004799]
[1773143096713,1.71360434,2063.2,2062.8,1.21194492]
[1773143097618,1.71360434,2063.1,2062.7,2.84200497]
[1773143100388,1.71360434,2063.1,2062.9,0.0011]
[1773143100788,1.71460434,2063.1,2062.9,0.0011]
[1773143101195,1.71360434,2063.0,2062.6,1.21315056]
[1773143101403,1.71360434,2063.0,2062.6,1.23740335]
[1773143102898,1.71360434,2063.0,2062.6,0.0011]
[1773143103315,1.71360434,2062.9,2062.6,0.0011]
[1773143104220,1.71360434,2062.9,2062.5,0.0011]
[1773143104728,1.75679027,2062.8,2062.5,0.0011]
[1773143105029,1.75679027,2062.8,2062.4,0.0011]
[1773143105390,1.75679027,2062.8,2062.4,1.75533275]
[1773143105634,1.75679027,2062.9,2062.4,1.75533275]
[1773143108122,1.75679027,2062.9,2062.5,2.96635396]
[1773143109026,1.75679027,2062.9,2062.5,1.21212121]
[1773143109318,1.75679027,2062.8,2062.4,1.21326681]
[1773143110520,1.75679027,2062.8,2062.4,2.96749956]
[1773143110906,0.001,2063.1,2062.5,1.77849612]
[1773143111105,1.75779027,2063.1,2062.5,1.77849612]
[1773143111427,1.75679027,2063.0,2062.5,1.75423275]
[1773143112527,1.75679027,2063.0,2062.6,1.21206244]
[1773143112706,1.75679027,2063.0,2062.6,2.96629519]
[1773143112910,1.75679027,2063.0,2062.7,0.02425162]
[1773143113840,0.001,2062.8,2062.7,0.02425162]
[1773143114325,0.001,2062.8,2062.6,2.96739519]
[1773143114937,0.001,2062.8,2062.7,1.75423275]
[1773143115629,0.001,2063.1,2062.7,1.75423275]
[1773143115830,0.001,2063.1,2062.8,1.75423275]
[1773143116021,1.75679027,2063.4,2062.9,1.75423275]
[1773143116826,1.75679027,2063.4,2063.0,1.21182743]
[1773143117812,1.75679027,2063.4,2063.0,2.96606018]
[1773143120464,1.75679027,2063.3,2063.0,2.96606018]
[1773143120725,1.75679027,2063.3,2062.9,1.75423275]
[1773143120901,1.75679027,2063.3,2062.9,2.96610149]
[1773143121330,1.75679027,2063.3,2062.9,1.21186874]
[1773143121958,1.81737283,2063.3,2062.8,1.893]
[1773143122167,1.75679027,2063.2,2062.7,1.21196567]
[1773143123061,1.75679027,2063.0,2062.6,0.0011]
[1773143123360,1.75679027,2063.0,2062.6,1.21315804]
[1773143123564,1.75679027,2063.0,2062.6,0.02535279]
[1773143123732,1.75679027,2063.0,2062.6,1.23740936]
[1773143124134,1.75679027,2063.0,2062.6,1.23740018]
[1773143124344,1.75679027,2063.0,2062.6,2.99163293]
[1773143124656,1.75679027,2063.0,2062.6,2.96738014]
[1773143126560,1.75679027,2063.0,2062.9,0.0011]
[1773143130259,2.9686177,2063.0,2062.6,0.0011]
[1773143130437,1.75679027,2062.9,2062.6,0.0011]
[1773143130959,1.75679027,2062.8,2062.6,0.0011]
[1773143133025,1.75679027,2062.7,2062.4,2.96749596]
[1773143133232,1.75679027,2062.7,2062.4,1.21326321]
[1773143133667,1.75679027,2062.7,2062.4,0.0011]
[1773143133865,1.75679027,2062.7,2062.4,1.21326685]
[1773143134327,1.75679027,2062.7,2062.4,1.21323487]
[1773143134577,1.75679027,2062.7,2062.4,2.95962487]
[1773143135557,1.75679027,2062.7,2062.4,0.0011]
[1773143136061,1.75679027,2062.7,2062.4,1.74749]
[1773143137044,1.75679027,2062.7,2062.4,0.0011]
[1773143137570,1.75679027,2062.7,2062.4,1.21327998]
[1773143138160,1.75679027,2062.7,2062.6,0.0011]
[1773143139750,1.70296493,2062.9,2062.6,0.0011]
[1773143139950,4.84719046,2063.1,2062.6,1.77174514]
[1773143139951,1.70296493,2063.1,2062.6,1.77174514]
[1773143140153,1.76355336,2063.1,2062.6,1.77174514]
[1773143140352,1.76355336,2063.1,2062.6,1.74749]
[1773143141054,1.76355336,2063.1,2062.6,0.0011]
[1773143142177,1.27237876,2063.1,2062.6,1.21316244]
[1773143142477,1.70296493,2063.0,2062.6,1.21316244]
[1773143144868,1.70296493,2063.0,2062.6,0.0011]
[1773143147073,2.91484288,2063.0,2062.6,0.0011]
[1773143147259,1.63213304,2062.9,2062.6,0.0011]
[1773143150068,1.63213304,2062.9,2062.8,0.0011]
[1773143150257,2.84401921,2062.9,2062.6,0.0011]
[1773143150462,1.63313304,2062.7,2062.6,0.0011]
[1773143153673,0.001,2062.7,2062.6,0.0011]
[1773143154273,1.63313304,2062.7,2062.6,0.0011]
[1773143157171,1.63213304,2062.6,2062.5,0.0011]
[1773143157375,0.001,2062.7,2062.5,0.0011]
[1773143157550,1.63313304,2062.7,2062.5,0.0011]
[1773143158070,0.001,2062.7,2062.5,1.70201615]
[1773143159869,0.001,2062.7,2062.5,2.91409266]
[1773143160272,0.001,2062.7,2062.6,1.70091615]
[1773143162576,0.001,2062.7,2062.6,2.91297859]
[1773143165051,1.64795863,2063.2,2062.7,1.73774287]
[1773143165254,0.001,2063.2,2062.7,1.73774287]
[1773143165578,0.001,2063.2,2062.7,1.76198744]
[1773143166381,0.001,2063.2,2062.7,1.73774287]
[1773143166581,0.001,2063.2,2062.9,1.73774287]
[1773143166775,1.64795863,2063.2,2062.9,1.73774287]
[1773143168766,1.64795863,2063.2,2062.9,2.9496243]
[1773143168964,1.64795863,2063.2,2062.9,1.73774287]
[1773143169685,1.64795863,2063.2,2062.9,1.21188615]
[1773143169686,0.001,2063.2,2062.9,1.21188615]
[1773143169878,0.001,2063.2,2063.0,1.73774287]
[1773143172589,1.64795863,2063.2,2062.9,1.21188615]
[1773143173284,1.64795863,2063.2,2062.8,2.9496783]
[1773143173488,1.64795863,2063.2,2062.9,1.73774287]
[1773143173998,1.64695863,2063.0,2062.6,3.09806244]
[1773143174181,1.64695863,2063.0,2062.6,4.83580531]
[1773143174494,1.64795863,2063.2,2062.7,1.73774287]
[1773143174796,1.64795863,2063.2,2062.8,2.95078779]
[1773143175096,0.001,2063.0,2062.8,2.95078779]
[1773143176196,0.001,2063.2,2062.9,1.73774287]
[1773143176874,0.001,2063.2,2063.0,1.21182743]
[1773143177378,0.001,2063.2,2063.0,2.9495703]
[1773143178898,1.70753825,2063.4,2063.1,3.89047216]
[1773143179101,2.91913228,2063.4,2063.1,1.73774287]
[1773143179461,1.21152969,2063.6,2063.2,1.73774287]
[1773143179698,1.64695863,2063.5,2063.2,1.73774287]
[1773143179894,1.64695863,2063.5,2063.1,1.21175669]
[1773143180194,1.70753532,2063.5,2063.1,1.21175669]
[1773143180693,1.70753532,2063.5,2063.0,4.83652199]
[1773143180871,1.64695863,2063.4,2062.9,4.84741243]
[1773143181077,1.64695863,2063.4,2062.9,4.83662904]
[1773143181786,1.64695863,2063.4,2062.9,3.62474287]
[1773143181973,1.64695863,2063.4,2062.9,1.887]
[1773143182596,1.64695863,2063.4,2062.8,2.95078779]
[1773143182800,1.64695863,2063.4,2062.9,1.888]
[1773143183372,1.64695863,2063.4,2063.0,2.9495703]
[1773143183779,1.64695863,2063.4,2063.0,1.73774287]
[1773143185396,1.64695863,2063.4,2063.1,1.21176869]
[1773143185598,1.64695863,2063.4,2063.0,2.94953567]
[1773143186389,1.64695863,2063.4,2062.9,8.40235081]
[1773143186574,1.64695863,2063.4,2063.2,0.0011]
[1773143187171,1.69588384,2063.3,2063.2,0.0011]
[1773143187378,1.69588384,2063.4,2063.2,0.0011]
[1773143187887,1.75646053,2063.5,2063.2,0.0011]
[1773143188398,2.96799604,2063.5,2063.2,0.0011]
[1773143189321,1.69588384,2063.4,2063.2,0.0011]
[1773143190098,0.06057669,2063.5,2063.2,1.66696554]
[1773143190398,1.69588384,2063.5,2063.2,1.66696554]
[1773143190582,1.69588384,2063.6,2063.2,1.66696554]
[1773143191284,1.21241638,2063.7,2063.2,1.66696554]
[1773143191485,1.21242845,2063.7,2063.2,1.66696554]
[1773143191686,1.69688384,2063.7,2063.3,2.87751677]
[1773143192679,1.69688384,2063.7,2063.3,1.66586554]
[1773143192884,1.75745465,2063.7,2063.2,1.21277589]
[1773143193292,1.75745465,2063.7,2063.2,2.87864143]
[1773143194816,1.76952806,2063.5,2063.2,1.66696554]
[1773143195207,1.76952806,2063.5,2063.2,0.0011]
[1773143195407,1.76952806,2063.5,2063.2,1.21280776]
[1773143195715,1.76952806,2063.5,2063.2,0.0011]
[1773143198302,1.76952806,2063.4,2063.2,0.0011]
[1773143200018,1.76952806,2063.3,2063.2,0.0011]
[1773143205433,1.76952806,2063.2,2063.0,0.0011]
[1773143206036,1.76952806,2063.2,2063.0,1.2129228]
[1773143206219,1.76952806,2063.2,2063.0,1.21291648]
[1773143206728,1.70028743,2063.3,2063.0,1.21291648]
[1773143207334,1.70028743,2063.3,2063.0,1.68655193]
[1773143207638,1.70028743,2063.3,2063.1,0.02423047]
[1773143209543,1.70028743,2063.3,2063.1,1.23594408]
[1773143209746,2.91282672,2063.5,2063.1,2.92139601]
[1773143209943,2.91282672,2063.5,2063.1,1.7096824]
[1773143210148,1.70028743,2063.4,2063.1,1.7096824]
[1773143211322,1.70028743,2063.4,2063.1,2.92144281]
[1773143211861,1.70028743,2063.3,2063.0,0.0011]
[1773143212444,1.70028743,2063.3,2063.0,1.21292128]
[1773143213641,2.97340441,2063.5,2063.2,0.0011]
[1773143213961,1.70028743,2063.4,2063.2,0.0011]
[1773143215964,1.70028743,2063.3,2063.2,0.0011]
[1773143217362,2.91190088,2063.4,2063.2,0.0011]
[1773143219971,2.91188909,2063.4,2063.2,0.0011]
[1773143220977,1.70028743,2063.3,2063.2,0.0011]
[1773143224974,2.91193866,2063.3,2063.2,0.0011]
[1773143226377,2.97252122,2063.3,2063.2,0.0011]
[1773143227341,0.06058256,2063.3,2063.2,0.0011]
[1773143227951,1.75049056,2063.4,2063.2,0.0011]
[1773143228152,3.02267278,2063.4,2063.2,0.0011]
[1773143228675,1.27218222,2063.4,2063.2,0.0011]
[1773143228844,1.75049056,2063.3,2063.2,0.0011]
[1773143229968,1.21165123,2063.3,2063.0,0.0011]
[1773143230146,1.75049056,2063.2,2063.0,0.0011]
[1773143231186,2.96214179,2063.3,2063.0,0.0011]
[1773143232587,1.75049056,2063.3,2063.0,1.21292743]
[1773143232757,2.96214299,2063.3,2063.0,0.0011]
[1773143232958,2.96214299,2063.3,2063.0,1.67396759]
[1773143233158,3.02272555,2063.3,2063.0,1.67396759]
[1773143233360,1.75049056,2063.2,2063.0,0.0011]
[1773143234664,2.96220726,2063.2,2063.0,0.0011]
[1773143236765,1.75049056,2063.2,2063.0,0.0011]
[1773143238498,1.75049056,2063.4,2063.1,1.67286759]
[1773143238710,1.75049056,2063.3,2063.0,0.02533399]
[1773143238916,1.75049056,2063.1,2062.8,0.0011]
[1773143240819,2.96229092,2063.1,2062.8,0.0011]
[1773143241623,1.75049056,2063.0,2062.8,0.0011]
[1773143243318,3.02279122,2063.2,2062.8,1.67396759]
[1773143243707,1.81107605,2063.2,2062.8,1.67396759]
[1773143243907,3.02279222,2063.2,2062.8,1.67396759]
[1773143244420,2.9621246,2063.4,2062.9,1.67286759]
[1773143244785,3.02270422,2063.4,2062.9,1.67286759]
[1773143245118,3.02270422,2063.4,2063.0,1.21922288]
[1773143245321,1.75049056,2063.3,2063.0,1.21922288]
[1773143247953,2.96218437,2063.3,2063.0,1.21922288]
[1773143250480,2.96218437,2063.3,2063.1,0.0011]
[1773143254585,1.21169381,2063.3,2063.1,0.0011]
[1773143254901,2.93231176,2063.3,2063.1,0.0011]
[1773143255046,1.21169381,2063.3,2063.1,0.0011]
[1773143256086,2.93231176,2063.3,2063.1,0.0011]
[1773143259475,1.72061795,2063.3,2063.1,0.0011]
[1773143259654,2.93227357,2063.3,2063.1,0.0011]
[1773143260258,0.001,2063.7,2063.4,1.21184736]
[1773143260466,1.72061795,2063.4,2063.1,1.21294736]
[1773143262005,0.06057962,2063.3,2063.1,1.21294736]
[1773143262452,0.06057962,2063.3,2063.1,2.42470302]
[1773143262651,1.72061795,2063.6,2063.2,1.2110174]
[1773143262882,0.09694404,2063.5,2063.2,1.2110174]
[1773143263102,0.06057962,2063.5,2063.2,1.2110174]
[1773143263980,0.001,2063.7,2063.2,1.25908975]
[1773143264278,1.72161795,2063.7,2063.2,1.21062136]
[1773143264488,2.93305663,2063.7,2063.3,1.21022808]
[1773143265193,1.21243868,2063.7,2063.3,1.21022808]
[1773143266589,1.21243868,2063.7,2063.4,1.20903005]
[1773143268397,0.03636442,2063.8,2063.1,0.94151546]
[1773143268595,1.755536,2064.5,2063.7,1.20827984]
[1773143268596,1.69184382,2064.3,2063.7,1.20827984]
[1773143271391,1.21112295,2064.2,2063.8,1.20715313]
[1773143275207,0.001,2064.0,2063.8,1.20715313]
[1773143275897,1.69284382,2064.0,2063.7,1.21137324]
[1773143276083,1.69284382,2064.0,2063.7,2.41708423]
[1773143276483,1.69284382,2064.0,2063.7,1.21137324]
[1773143276688,1.69284382,2064.0,2063.6,1.21252577]
[1773143277291,1.69284382,2064.0,2063.6,2.41754404]
[1773143278408,1.69284382,2064.0,2063.6,1.21252577]
[1773143278583,1.69284382,2064.0,2063.7,1.20469016]
[1773143280617,1.69284382,2064.0,2063.7,2.46452949]
[1773143281318,1.69284382,2064.0,2063.7,2.41607284]
[1773143282014,1.69284382,2064.0,2063.7,1.21140465]
[1773143282621,0.001,2064.6,2063.6,0.0011]
[1773143282917,0.001,2064.8,2064.7,1.20236923]
[1773143283087,1.69184382,2065.4,2064.8,1.20205706]
[1773143283287,1.69104382,2065.3,2064.9,1.20285706]
[1773143284997,1.69104382,2065.3,2064.9,2.41352461]
[1773143285599,0.79078026,2065.2,2064.9,2.41352461]
[1773143287415,0.79078026,2065.2,2065.1,0.001]
[1773143288302,1.69304382,2065.3,2065.1,0.001]
[1773143288507,0.79078026,2065.2,2065.1,1.20206515]
[1773143289431,0.79078026,2065.2,2065.1,2.41266027]
[1773143290617,0.79078026,2065.2,2065.1,0.001]
[1773143290922,1.67943388,2065.1,2064.9,0.001]
[1773143291121,2.47021414,2065.1,2064.9,0.001]
[1773143293512,2.47021414,2065.1,2064.9,1.21171238]
[1773143294221,0.79078026,2065.1,2064.9,1.21171238]
[1773143295233,0.002,2065.3,2065.0,1.19907742]
[1773143296031,1.68143388,2065.3,2065.1,1.21059512]
[1773143296404,1.68143388,2065.3,2065.1,2.40937421]
[1773143296405,0.002,2065.3,2065.1,2.40937421]
[1773143296601,1.67943388,2065.5,2065.2,0.94041546]
[1773143296838,0.002,2065.6,2065.3,1.19877909]
[1773143298204,1.68143388,2065.6,2065.2,1.21049016]
[1773143298404,1.68143388,2065.6,2065.2,1.20969016]
[1773143299743,1.68143388,2065.6,2065.2,1.19794778]
[1773143300725,0.002,2065.4,2065.2,1.19794778]
[1773143301322,0.002,2065.7,2065.3,1.24383431]
[1773143301625,0.002,2065.8,2065.6,1.1954152]
[1773143301801,0.002,2066.1,2065.8,1.1954152]
[1773143302006,0.002,2066.1,2065.7,1.19514424]
[1773143302007,0.0012,2066.1,2065.7,1.19514424]
[1773143302445,1.68063388,2066.1,2065.7,1.19514424]
[1773143302630,1.68063388,2066.1,2065.3,2.40561597]
[1773143302631,1.67943388,2066.0,2065.3,2.40561597]
[1773143302814,1.67943388,2066.0,2065.1,2.40669149]
[1773143304724,1.67943388,2065.8,2065.1,2.40669149]
[1773143305112,2.8906455,2066.1,2065.6,1.19441798]
[1773143305317,2.89066293,2066.1,2065.6,1.19441798]
[1773143305617,1.67943388,2066.0,2065.4,1.19441798]
[1773143306615,1.67943388,2066.0,2065.5,0.04841442]
[1773143306839,1.67943388,2066.0,2065.6,1.21030209]
[1773143307549,0.0012,2066.1,2065.7,1.19393119]
[1773143308518,0.002,2066.2,2065.9,1.19370936]
[1773143308949,0.002,2066.2,2066.0,1.21006776]
[1773143309347,0.002,2066.2,2065.6,4.840974]
[1773143309348,1.68143388,2066.2,2065.6,4.840974]
[1773143309522,1.68143388,2066.2,2065.7,1.19346965]
[1773143311847,1.68143388,2066.2,2065.8,1.21018491]
[1773143312732,0.002,2066.2,2065.9,1.1907814]
[1773143313629,0.002,2066.2,2066.0,1.21006776]
[1773143318931,0.002,2066.2,2065.9,6.03113241]
[1773143318932,1.70309411,2066.2,2065.7,1.2102435]
[1773143319163,1.70109411,2066.1,2065.7,1.2094435]
[1773143319951,1.70109411,2066.1,2065.6,4.84117824]
[1773143320152,1.70109411,2066.1,2065.7,1.18886761]
[1773143320366,1.70109411,2066.1,2065.7,1.20903357]
[1773143321138,1.70109411,2066.1,2065.7,1.18886761]
[1773143321867,1.70109411,2066.1,2065.8,1.21018491]
[1773143322173,1.70109411,2066.0,2065.5,2.39884337]
[1773143323357,1.70109411,2066.0,2065.6,1.18829032]
[1773143324469,1.70109411,2066.0,2065.6,2.39854593]
[1773143325041,1.70109411,2066.0,2065.9,0.001]
[1773143325439,1.70309411,2066.0,2065.9,0.001]
[1773143327672,1.72163797,2065.9,2065.6,3.841]
[1773143327983,1.72163797,2065.9,2065.6,6.23966002]
[1773143328142,1.72163797,2065.9,2065.6,2.39966002]
[1773143329153,0.002,2066.0,2065.7,1.18801785]
[1773143329354,0.002,2066.0,2065.8,1.20492343]
[1773143329753,0.002,2066.0,2065.8,1.18801785]
[1773143329986,0.002,2066.0,2065.7,1.18801785]
[1773143329987,1.72363797,2066.0,2065.7,1.18801785]
[1773143330503,1.72163797,2065.9,2065.4,0.001]
[1773143330794,1.72163797,2065.7,2065.4,0.001]
[1773143333007,1.72163797,2065.6,2065.4,0.001]
[1773143335901,2.93194964,2065.6,2065.4,0.001]
[1773143336202,1.72163797,2065.5,2065.4,0.001]
[1773143337397,2.93194964,2065.6,2065.4,0.001]
[1773143340320,1.72163797,2065.5,2065.4,0.001]
[1773143340623,1.72163797,2065.5,2065.2,3.84]
[1773143341123,1.72163797,2065.5,2065.1,6.23876441]
[1773143341424,1.72163797,2065.5,2065.2,1.18701902]
[1773143341573,1.21031167,2065.6,2065.2,1.19687617]
[1773143341772,1.21031167,2065.6,2065.2,1.23544048]
[1773143341994,1.21031167,2065.6,2065.2,1.18701902]
[1773143342492,2.93194964,2065.6,2065.2,1.18701902]
[1773143342692,1.72163797,2065.5,2065.2,1.18701902]
[1773143342899,1.72163797,2065.5,2065.1,5.0278591]
[1773143343322,1.72163797,2065.5,2065.1,6.23844937]
[1773143343517,1.72163797,2065.5,2065.1,0.001]
[1773143344498,1.73578977,2065.4,2065.1,0.001]
[1773143344701,1.21035828,2065.6,2065.1,1.18740235]
[1773143344910,1.73578977,2065.5,2065.1,1.23582615]
[1773143345075,1.73578977,2065.5,2064.9,0.001]
[1773143345278,8.44045002,2064.6,2063.0,3.60971491]
[1773143345619,2.57494317,2065.4,2063.5,0.93782778]
[1773143345620,1.77001355,2064.3,2063.5,0.93782778]
[1773143345773,1.77001355,2064.3,2063.6,1.862]
[1773143346286,2.89152918,2064.2,2063.6,1.862]
[1773143346483,1.77001355,2064.3,2063.6,1.862]
[1773143346672,1.77001355,2064.3,2063.7,1.21141638]
[1773143346673,2.89161327,2064.2,2063.7,1.21141638]
[1773143346874,2.98110787,2064.3,2063.7,1.21141638]
[1773143347070,2.98110787,2064.3,2063.6,3.1937755]
[1773143347071,2.89161327,2064.2,2063.6,3.1937755]
[1773143348109,1.77001355,2064.3,2063.6,3.1937755]
[1773143348478,2.98112815,2064.3,2063.7,0.11924502]
[1773143348689,2.98112815,2064.3,2063.8,1.21135768]
[1773143349008,2.98112815,2064.3,2063.8,1.21235768]
[1773143349382,1.77001355,2064.3,2063.8,1.21235768]
[1773143351097,1.77001355,2064.3,2063.9,1.25974212]
[1773143351515,4.84389672,2064.5,2064.2,0.93782778]
[1773143351516,1.77001355,2064.5,2064.2,0.93782778]
[1773143351702,1.77001355,2064.5,2064.3,0.04844256]
[1773143351908,1.77001355,2064.5,2064.1,0.04844256]
[1773143352914,1.77001355,2064.5,2064.0,0.11603822]
[1773143353410,1.77001355,2064.4,2064.0,1.21122788]
[1773143355786,1.77001355,2064.4,2064.0,1.32296423]
[1773143355981,2.98094169,2064.6,2064.0,1.32296423]
[1773143356717,2.98094169,2064.6,2064.1,0.11063624]
[1773143356882,1.77001355,2064.6,2064.1,0.11063624]
[1773143357085,1.73578977,2065.1,2064.5,0.93782778]
[1773143357298,4.6162717,2065.0,2064.5,2.56276462]
[1773143357498,1.73578977,2065.0,2064.5,2.56276462]
[1773143357719,1.73578977,2065.0,2064.5,1.62493684]
[1773143359686,2.94650215,2064.9,2064.4,1.21098609]
[1773143359886,1.73498977,2064.8,2064.4,1.62493684]
[1773143360088,1.73498977,2064.8,2064.3,2.8359912]
[1773143360790,1.73498977,2064.8,2064.4,1.62493684]
[1773143361920,1.73498977,2064.8,2064.7,0.0011]
[1773143362220,1.73598977,2064.8,2064.7,0.0011]
[1773143365693,0.001,2064.8,2064.7,0.0011]
[1773143366192,2.8875637,2064.8,2064.7,0.0011]
[1773143366505,0.001,2064.8,2064.7,0.0011]
[1773143366891,2.88830122,2064.8,2064.7,0.0011]
[1773143367387,1.73578977,2065.0,2064.7,0.0011]
[1773143367591,1.73578977,2065.0,2064.7,1.62603684]
[1773143368522,1.21060289,2065.1,2064.7,1.62603684]
[1773143368687,5.25959845,2065.2,2064.7,1.62603684]
[1773143369023,2.94633276,2065.2,2064.9,1.62493684]
[1773143369520,1.73578977,2065.0,2064.7,0.0011]
[1773143372001,2.94647409,2065.0,2064.7,0.0011]
[1773143372602,1.73578977,2064.9,2064.7,0.0011]
[1773143373119,1.78421357,2064.9,2064.5,0.0011]
[1773143374021,3.01456913,2064.8,2064.5,0.0011]
[1773143374727,1.80379812,2064.7,2064.5,0.0011]
[1773143376392,3.01468642,2064.6,2064.5,0.0011]
[1773143376798,1.80379812,2064.6,2064.5,0.0011]
[1773143377000,3.01467231,2064.7,2064.5,0.0011]
[1773143379635,1.80379812,2064.6,2064.5,0.0011]
[1773143383431,4.84426415,2064.8,2064.5,1.85098734]
[1773143383432,3.01557415,2064.8,2064.5,1.85098734]
[1773143385639,3.06399795,2064.8,2064.5,1.85098734]
[1773143386425,3.06399795,2064.8,2064.5,0.0011]
[1773143386925,1.73000389,2064.7,2064.5,0.0011]
[1773143387539,2.94089113,2064.7,2064.5,0.0011]
[1773143388727,2.94189113,2064.7,2064.5,0.0011]
[1773143390240,1.73100389,2064.7,2064.5,0.0011]
[1773143390636,4.84242727,2065.1,2064.7,1.83790551]
[1773143390637,1.73000389,2065.1,2064.7,1.83790551]
[1773143390818,0.0484238,2065.0,2064.7,1.83790551]
[1773143391138,1.77842769,2065.0,2064.7,1.83790551]
[1773143392652,1.25910628,2065.0,2064.7,1.83790551]
[1773143392828,0.0484238,2065.0,2064.8,1.83790551]
[1773143393028,1.21056167,2065.2,2064.8,1.83790551]
[1773143393258,2.94056556,2065.2,2064.8,1.83790551]
[1773143394219,2.98898936,2065.2,2064.8,1.83790551]
[1773143395163,1.25898547,2065.2,2064.8,1.83790551]
[1773143395366,1.73000389,2065.1,2064.8,1.83790551]
[1773143397266,2.9406022,2065.1,2064.8,1.83790551]
[1773143400457,2.9406022,2065.1,2064.8,1.85989378]
[1773143400962,0.001,2064.9,2064.8,1.85989378]
[1773143401125,4.84397469,2065.3,2064.8,1.85989378]
[1773143401126,2.94248627,2065.3,2064.9,1.83790551]
[1773143401328,2.99091007,2065.3,2064.9,1.83790551]
[1773143401529,1.73000389,2065.2,2064.9,1.83790551]